[Event "*** SCC Grand Prix: Titled Tuesday Blitz"]
[Site "Chess.com"]
[Date "2020.08.11"]
[Round "7"]
[White "Sacbutt"]
[Black "BlackWidow515"]
[Result "1-0"]
[WhiteElo "2174"]
[BlackElo "2078"]
[TimeControl "180+1"]
[EndTime "11:15:19 PDT"]
[Termination "Sacbutt won by resignation"]

1. e4 {[%clk 0:03:00.7]} 1... e5 {[%clk 0:02:59.9]} 2. Nf3 {[%clk 0:02:57.8]}
2... Nc6 {[%clk 0:02:59.8]} 3. Bc4 {[%clk 0:02:58]} 3... Be7 {[%clk 0:02:55]} 4.
d4 {[%clk 0:02:49.3]} 4... exd4 {[%clk 0:02:54.8]} 5. Nxd4 {[%clk 0:02:47.9]}
5... d6 {[%clk 0:02:49.8]} 6. Nxc6 {[%clk 0:02:27]} 6... bxc6 {[%clk 0:02:45.6]}
7. Qh5 {[%clk 0:02:22.9]} 7... g6 {[%clk 0:02:37.5]} 8. Qf3 {[%clk 0:02:20.9]}
8... Nf6 {[%clk 0:02:28.8]} 9. Bh6 {[%clk 0:02:20.7]} 9... Bg4 {[%clk
0:02:11.8]} 10. Qc3 {[%clk 0:02:13]} 10... d5 {[%clk 0:01:39.3]} 11. exd5 {[%clk
0:02:06.4]} 11... cxd5 {[%clk 0:01:38.6]} 12. Bb5+ {[%clk 0:02:05.9]} 12... Bd7
{[%clk 0:01:39.1]} 13. Bxd7+ {[%clk 0:02:01.5]} 13... Qxd7 {[%clk 0:01:39.4]}
14. O-O {[%clk 0:01:59.4]} 14... O-O-O {[%clk 0:01:33.8]} 15. Bg7 {[%clk
0:01:50.9]} 15... Ne4 {[%clk 0:00:57.6]} 16. Qa5 {[%clk 0:01:48.2]} 16... Bc5
{[%clk 0:00:48.8]} 17. Bxh8 {[%clk 0:01:44.2]} 17... Rxh8 {[%clk 0:00:48.8]} 18.
Nc3 {[%clk 0:01:44.2]} 18... Nxc3 {[%clk 0:00:41.2]} 19. Qxc3 {[%clk 0:01:39.6]}
1-0

[Event "*** SCC Grand Prix: Titled Tuesday Blitz"]
[Site "Chess.com"]
[Date "2020.08.11"]
[Round "7"]
[White "korbul"]
[Black "Sadykov_Ramil"]
[Result "0-1"]
[WhiteElo "2559"]
[BlackElo "2418"]
[TimeControl "180+1"]
[EndTime "11:15:37 PDT"]
[Termination "Sadykov_Ramil won by resignation"]

1. e4 {[%clk 0:03:00.9]} 1... c5 {[%clk 0:02:55.8]} 2. Nf3 {[%clk 0:03:00.5]}
2... e6 {[%clk 0:02:49.9]} 3. d4 {[%clk 0:03:00.3]} 3... cxd4 {[%clk 0:02:50.4]}
4. Nxd4 {[%clk 0:03:01.1]} 4... Nf6 {[%clk 0:02:50.7]} 5. Nc3 {[%clk 0:03:01.3]}
5... Nc6 {[%clk 0:02:51]} 6. Be2 {[%clk 0:02:55.1]} 6... Bb4 {[%clk 0:02:46.8]}
7. Qd3 {[%clk 0:02:47.2]} 7... d5 {[%clk 0:02:45.1]} 8. Nxc6 {[%clk 0:02:34.8]}
8... bxc6 {[%clk 0:02:44.4]} 9. e5 {[%clk 0:02:30.8]} 9... Nd7 {[%clk
0:02:42.8]} 10. Qg3 {[%clk 0:02:29.4]} 10... d4 {[%clk 0:01:47.6]} 11. a3 {[%clk
0:02:27.7]} 11... Qa5 {[%clk 0:01:46.4]} 12. Rb1 {[%clk 0:01:51.5]} 12... Bxc3+
{[%clk 0:01:20.1]} 13. bxc3 {[%clk 0:01:50.3]} 13... Qxc3+ {[%clk 0:01:20.3]}
14. Bd2 {[%clk 0:01:48.9]} 14... Qxg3 {[%clk 0:01:08]} 15. hxg3 {[%clk
0:01:48.2]} 15... Nxe5 {[%clk 0:01:08.2]} 16. f4 {[%clk 0:01:48.3]} 16... Nd7
{[%clk 0:01:06.7]} 17. Bf3 {[%clk 0:01:48.3]} 17... Rb8 {[%clk 0:01:03.4]} 18.
Ke2 {[%clk 0:01:46]} 18... Ba6+ {[%clk 0:01:00.4]} 19. Kf2 {[%clk 0:01:46.4]}
19... c5 {[%clk 0:00:39.9]} 20. Bc6 {[%clk 0:01:43]} 20... Rxb1 {[%clk
0:00:33.2]} 21. Rxb1 {[%clk 0:01:42]} 21... Ke7 {[%clk 0:00:33.5]} 22. c3 {[%clk
0:01:32.6]} 22... Rb8 {[%clk 0:00:27.8]} 23. Rh1 {[%clk 0:01:29.9]} 23... Rb2
{[%clk 0:00:23.4]} 0-1

[Event "*** SCC Grand Prix: Titled Tuesday Blitz"]
[Site "Chess.com"]
[Date "2020.08.11"]
[Round "7"]
[White "Region_07"]
[Black "Iskusnyh"]
[Result "1-0"]
[WhiteElo "2424"]
[BlackElo "2549"]
[TimeControl "180+1"]
[EndTime "11:15:37 PDT"]
[Termination "Region_07 won by checkmate"]

1. e4 {[%clk 0:03:00.9]} 1... e6 {[%clk 0:02:59.3]} 2. d4 {[%clk 0:02:58.9]}
2... d5 {[%clk 0:02:59.8]} 3. Nd2 {[%clk 0:02:58.6]} 3... c5 {[%clk 0:02:58.9]}
4. exd5 {[%clk 0:02:57]} 4... Qxd5 {[%clk 0:02:57.4]} 5. Ngf3 {[%clk 0:02:52.3]}
5... cxd4 {[%clk 0:02:57.1]} 6. Bc4 {[%clk 0:02:52.1]} 6... Qd7 {[%clk
0:02:57.3]} 7. O-O {[%clk 0:02:52]} 7... Nc6 {[%clk 0:02:57.9]} 8. Re1 {[%clk
0:02:47.1]} 8... Nf6 {[%clk 0:02:50.6]} 9. Nb3 {[%clk 0:02:47]} 9... Qc7 {[%clk
0:02:32.1]} 10. Bb5 {[%clk 0:02:45.4]} 10... Bd7 {[%clk 0:02:26.2]} 11. Nbxd4
{[%clk 0:02:44.5]} 11... O-O-O {[%clk 0:02:10.8]} 12. Qe2 {[%clk 0:02:27.5]}
12... Nxd4 {[%clk 0:01:44.9]} 13. Nxd4 {[%clk 0:02:28.4]} 13... Bc5 {[%clk
0:01:42.5]} 14. Bxd7+ {[%clk 0:02:22.6]} 14... Rxd7 {[%clk 0:01:39.6]} 15. Nb5
{[%clk 0:01:52.5]} 15... Qb6 {[%clk 0:01:34.3]} 16. Bf4 {[%clk 0:01:44.5]} 16...
Nd5 {[%clk 0:01:18.3]} 17. Bg3 {[%clk 0:01:44]} 17... a6 {[%clk 0:01:18]} 18.
Qe5 {[%clk 0:01:33.9]} 18... Bxf2+ {[%clk 0:01:06.6]} 19. Bxf2 {[%clk
0:01:32.2]} 19... Qxb5 {[%clk 0:01:06]} 20. c4 {[%clk 0:01:32.8]} 20... Qa4
{[%clk 0:00:26.2]} 21. cxd5 {[%clk 0:01:31.7]} 21... exd5 {[%clk 0:00:19.5]} 22.
Rac1+ {[%clk 0:01:31.6]} 22... Kd8 {[%clk 0:00:19.3]} 23. Qb8# {[%clk
0:01:31.7]} 1-0

[Event "*** SCC Grand Prix: Titled Tuesday Blitz"]
[Site "Chess.com"]
[Date "2020.08.11"]
[Round "7"]
[White "Politov_Pavel"]
[Black "Nikolaj_6"]
[Result "1-0"]
[WhiteElo "2127"]
[BlackElo "2604"]
[TimeControl "180+1"]
[EndTime "11:15:45 PDT"]
[Termination "Politov_Pavel won by checkmate"]

1. d4 {[%clk 0:02:59.4]} 1... Nf6 {[%clk 0:02:59.7]} 2. c4 {[%clk 0:03:00.3]}
2... c5 {[%clk 0:02:58.5]} 3. d5 {[%clk 0:02:58.7]} 3... e6 {[%clk 0:02:58.7]}
4. Nc3 {[%clk 0:02:59.3]} 4... exd5 {[%clk 0:02:58.8]} 5. cxd5 {[%clk
0:02:59.9]} 5... d6 {[%clk 0:02:59.4]} 6. Nf3 {[%clk 0:03:00.3]} 6... g6 {[%clk
0:02:59.6]} 7. Nd2 {[%clk 0:02:58.8]} 7... Nbd7 {[%clk 0:02:58]} 8. a4 {[%clk
0:02:54.6]} 8... Bg7 {[%clk 0:02:57.2]} 9. Nc4 {[%clk 0:02:52.9]} 9... Nb6
{[%clk 0:02:56.8]} 10. Na3 {[%clk 0:02:53.3]} 10... Bd7 {[%clk 0:02:53.9]} 11.
a5 {[%clk 0:02:46.8]} 11... Nc8 {[%clk 0:02:53.9]} 12. Nc4 {[%clk 0:02:46]}
12... O-O {[%clk 0:02:50.1]} 13. Bg5 {[%clk 0:02:44.9]} 13... Re8 {[%clk
0:02:42.4]} 14. e3 {[%clk 0:02:40.8]} 14... h6 {[%clk 0:02:42.4]} 15. Bf4 {[%clk
0:02:40.5]} 15... Qe7 {[%clk 0:02:40.2]} 16. Be2 {[%clk 0:02:36.5]} 16... Rb8
{[%clk 0:02:21.7]} 17. O-O {[%clk 0:02:36.5]} 17... a6 {[%clk 0:02:21.6]} 18. h3
{[%clk 0:02:27.7]} 18... Bb5 {[%clk 0:02:15.3]} 19. Nxb5 {[%clk 0:02:02.6]}
19... axb5 {[%clk 0:02:14.8]} 20. Na3 {[%clk 0:02:03.2]} 20... b4 {[%clk
0:02:13.5]} 21. Nc4 {[%clk 0:02:03.7]} 21... Nd7 {[%clk 0:02:09.3]} 22. Ra2
{[%clk 0:02:04.1]} 22... Kh7 {[%clk 0:02:06]} 23. Qc2 {[%clk 0:02:00]} 23... Ne5
{[%clk 0:02:05.6]} 24. Bxe5 {[%clk 0:01:36.9]} 24... Bxe5 {[%clk 0:02:05.3]} 25.
a6 {[%clk 0:01:37.3]} 25... bxa6 {[%clk 0:01:40.9]} 26. Rxa6 {[%clk 0:01:38.2]}
26... Qb7 {[%clk 0:01:31.4]} 27. Rfa1 {[%clk 0:01:38.1]} 27... Qxd5 {[%clk
0:01:28.2]} 28. Bf3 {[%clk 0:01:36]} 28... Qe6 {[%clk 0:01:21.7]} 29. Rd1 {[%clk
0:01:36]} 29... Rd8 {[%clk 0:01:11]} 30. Bd5 {[%clk 0:01:35.2]} 30... Qe7 {[%clk
0:01:07.2]} 31. Nxe5 {[%clk 0:01:25.7]} 31... dxe5 {[%clk 0:01:06.7]} 32. Rd2
{[%clk 0:01:23.8]} 32... Nb6 {[%clk 0:01:03.8]} 33. Bxf7 {[%clk 0:01:19.7]}
33... Rxd2 {[%clk 0:00:53.6]} 34. Qxg6+ {[%clk 0:01:17.4]} 34... Kh8 {[%clk
0:00:53.5]} 35. Qxh6# {[%clk 0:01:18.3]} 1-0

[Event "*** SCC Grand Prix: Titled Tuesday Blitz"]
[Site "Chess.com"]
[Date "2020.08.11"]
[Round "7"]
[White "larisakalinina"]
[Black "Chuchofrio1"]
[Result "0-1"]
[WhiteElo "1979"]
[BlackElo "2284"]
[TimeControl "180+1"]
[EndTime "11:15:51 PDT"]
[Termination "Chuchofrio1 won by resignation"]

1. e4 {[%clk 0:03:00.9]} 1... c5 {[%clk 0:02:59.4]} 2. Nf3 {[%clk 0:03:00.5]}
2... Nc6 {[%clk 0:02:59.9]} 3. d4 {[%clk 0:03:00.9]} 3... cxd4 {[%clk
0:03:00.8]} 4. Nxd4 {[%clk 0:03:00.9]} 4... Nf6 {[%clk 0:03:01.4]} 5. Nc3 {[%clk
0:03:01.1]} 5... e5 {[%clk 0:03:01.7]} 6. Ndb5 {[%clk 0:03:00.1]} 6... d6 {[%clk
0:03:02.2]} 7. Bg5 {[%clk 0:02:59.8]} 7... a6 {[%clk 0:03:02.4]} 8. Na3 {[%clk
0:03:00.1]} 8... b5 {[%clk 0:03:02.3]} 9. Nd5 {[%clk 0:02:59.2]} 9... Be7 {[%clk
0:03:01.8]} 10. Bxf6 {[%clk 0:02:59.5]} 10... Bxf6 {[%clk 0:03:01.8]} 11. c3
{[%clk 0:02:59.9]} 11... O-O {[%clk 0:03:01.5]} 12. Nc2 {[%clk 0:03:00.2]} 12...
Bg5 {[%clk 0:03:02.1]} 13. a3 {[%clk 0:02:58.7]} 13... Kh8 {[%clk 0:02:56.2]}
14. h4 {[%clk 0:02:56]} 14... Bh6 {[%clk 0:02:55.2]} 15. g4 {[%clk 0:02:56.2]}
15... Bf4 {[%clk 0:02:54.3]} 16. Qf3 {[%clk 0:02:56.4]} 16... Be6 {[%clk
0:02:52]} 17. Nxf4 {[%clk 0:02:54.8]} 17... Qf6 {[%clk 0:02:51.7]} 18. g5 {[%clk
0:02:53.3]} 18... Qxf4 {[%clk 0:02:51.1]} 19. Qxf4 {[%clk 0:02:53.2]} 19... exf4
{[%clk 0:02:51.4]} 20. Nd4 {[%clk 0:02:44.6]} 20... Ne5 {[%clk 0:02:49.5]} 21.
Nxe6 {[%clk 0:02:31.5]} 21... fxe6 {[%clk 0:02:49.4]} 22. Bh3 {[%clk 0:02:31.1]}
22... Rae8 {[%clk 0:02:40.4]} 23. O-O-O {[%clk 0:02:29.2]} 23... Nc4 {[%clk
0:02:36.5]} 24. b3 {[%clk 0:02:22.3]} 24... Nxa3 {[%clk 0:02:35.3]} 25. Kb2
{[%clk 0:02:21.9]} 25... b4 {[%clk 0:02:35.3]} 26. Rxd6 {[%clk 0:02:06.5]} 26...
Nb5 {[%clk 0:02:32.1]} 27. Rxe6 {[%clk 0:02:06.6]} 27... bxc3+ {[%clk
0:02:29.2]} 28. Ka2 {[%clk 0:02:02.3]} 28... Rxe6 {[%clk 0:02:24.5]} 29. Bxe6
{[%clk 0:02:00.3]} 29... Rd8 {[%clk 0:02:24]} 30. b4 {[%clk 0:01:32.7]} 30...
Rd2+ {[%clk 0:02:20.6]} 31. Kb3 {[%clk 0:01:30]} 31... g6 {[%clk 0:01:53.8]} 32.
Ra1 {[%clk 0:01:22.9]} 32... Rb2+ {[%clk 0:01:50.6]} 33. Kc4 {[%clk 0:01:19]}
33... c2 {[%clk 0:01:44.7]} 34. Rc1 {[%clk 0:01:17]} 34... Na3+ {[%clk 0:01:39]}
35. Kc3 {[%clk 0:01:13.8]} 35... Rb1 {[%clk 0:01:39.2]} 36. Rxc2 {[%clk
0:01:12.2]} 36... Nxc2 {[%clk 0:01:37.9]} 37. Kxc2 {[%clk 0:01:12.6]} 37... Rxb4
{[%clk 0:01:37.9]} 38. Bd5 {[%clk 0:01:09.6]} 38... Kg7 {[%clk 0:01:33.1]} 39.
e5 {[%clk 0:01:08.7]} 39... Kf8 {[%clk 0:01:32.1]} 40. e6 {[%clk 0:01:07.4]}
40... Ke7 {[%clk 0:01:31.2]} 41. Kc3 {[%clk 0:01:04.2]} 41... Rb6 {[%clk
0:01:30.7]} 42. Kd4 {[%clk 0:01:01.3]} 42... Rxe6 {[%clk 0:01:26.9]} 0-1

[Event "*** SCC Grand Prix: Titled Tuesday Blitz"]
[Site "Chess.com"]
[Date "2020.08.11"]
[Round "7"]
[White "StellarChessPro"]
[Black "TioCridineno"]
[Result "1-0"]
[WhiteElo "2519"]
[BlackElo "2207"]
[TimeControl "180+1"]
[EndTime "11:15:51 PDT"]
[Termination "StellarChessPro won by resignation"]

1. d4 {[%clk 0:03:00.9]} 1... Nf6 {[%clk 0:02:58.2]} 2. Bg5 {[%clk 0:03:01.1]}
2... c5 {[%clk 0:02:56.2]} 3. Bxf6 {[%clk 0:03:01.4]} 3... gxf6 {[%clk
0:02:56.1]} 4. d5 {[%clk 0:03:02.3]} 4... Qb6 {[%clk 0:02:55.5]} 5. Qc1 {[%clk
0:03:02.5]} 5... f5 {[%clk 0:02:55.3]} 6. e3 {[%clk 0:03:03.1]} 6... Bg7 {[%clk
0:02:55]} 7. c3 {[%clk 0:03:03.9]} 7... d6 {[%clk 0:02:55.1]} 8. Ne2 {[%clk
0:03:04.8]} 8... Nd7 {[%clk 0:02:54.9]} 9. Nf4 {[%clk 0:03:05.7]} 9... Ne5
{[%clk 0:02:53]} 10. Be2 {[%clk 0:03:06.3]} 10... Bd7 {[%clk 0:02:52.4]} 11. O-O
{[%clk 0:03:07]} 11... O-O-O {[%clk 0:02:43.8]} 12. a4 {[%clk 0:03:07.3]} 12...
Ng6 {[%clk 0:02:34.6]} 13. a5 {[%clk 0:03:07.8]} 13... Qc7 {[%clk 0:02:34.3]}
14. Nd2 {[%clk 0:03:08.1]} 14... Nxf4 {[%clk 0:02:30.4]} 15. exf4 {[%clk
0:03:09]} 15... Bf6 {[%clk 0:02:29.6]} 16. Nc4 {[%clk 0:03:09]} 16... Rhg8
{[%clk 0:02:23.2]} 17. Qe3 {[%clk 0:03:06.9]} 17... Rg6 {[%clk 0:02:18.6]} 18.
b4 {[%clk 0:03:06.9]} 18... Rdg8 {[%clk 0:02:16.8]} 19. g3 {[%clk 0:03:04.9]}
19... h5 {[%clk 0:02:03.3]} 20. Rfb1 {[%clk 0:03:04.3]} 20... h4 {[%clk
0:02:02.8]} 21. a6 {[%clk 0:03:04.5]} 21... b6 {[%clk 0:01:53.4]} 22. bxc5
{[%clk 0:03:04.8]} 22... Qxc5 {[%clk 0:01:52.5]} 23. Qxc5+ {[%clk 0:03:02.1]}
23... dxc5 {[%clk 0:01:51.2]} 24. Bf3 {[%clk 0:02:56.4]} 24... Kc7 {[%clk
0:01:45]} 25. d6+ {[%clk 0:02:54.3]} 25... exd6 {[%clk 0:01:44.4]} 26. Nxb6
{[%clk 0:02:51.7]} 26... Bc6 {[%clk 0:01:41]} 27. Nd5+ {[%clk 0:02:47.6]} 27...
Bxd5 {[%clk 0:01:41.4]} 28. Bxd5 {[%clk 0:02:48.5]} 28... Bxc3 {[%clk
0:01:21.7]} 29. Rb7+ {[%clk 0:02:48.3]} 29... Kc8 {[%clk 0:01:22.1]} 30. Rab1
{[%clk 0:02:44.7]} 30... Bb4 {[%clk 0:01:22.1]} 31. Bxf7 {[%clk 0:02:42.1]}
31... hxg3 {[%clk 0:01:19.9]} 32. hxg3 {[%clk 0:02:38.8]} 32... R8g7 {[%clk
0:01:17.6]} 33. Bxg6 {[%clk 0:02:38.7]} 33... Rxg6 {[%clk 0:01:17.6]} 34. Rxa7
{[%clk 0:02:36.1]} 34... Kb8 {[%clk 0:01:17.8]} 35. Rb7+ {[%clk 0:02:35.4]}
35... Ka8 {[%clk 0:01:18.2]} 36. Rf7 {[%clk 0:02:27]} 36... Re6 {[%clk
0:01:12.5]} 37. Rxf5 {[%clk 0:02:26.3]} 37... Ka7 {[%clk 0:01:12.9]} 38. Kg2
{[%clk 0:02:25.9]} 38... Kxa6 {[%clk 0:01:13.1]} 39. g4 {[%clk 0:02:25.6]} 39...
Kb5 {[%clk 0:01:09.3]} 40. g5 {[%clk 0:02:26]} 40... Kc6 {[%clk 0:01:07.2]} 41.
Kf3 {[%clk 0:02:24]} 41... d5 {[%clk 0:01:07]} 42. Rg1 {[%clk 0:02:22.5]} 42...
Bc3 {[%clk 0:01:00.4]} 43. g6 {[%clk 0:02:21.5]} 43... Re8 {[%clk 0:01:00.3]}
44. Rf7 {[%clk 0:02:20.6]} 44... Rg8 {[%clk 0:01:00.1]} 45. f5 {[%clk
0:02:20.6]} 45... c4 {[%clk 0:00:59.1]} 46. Kf4 {[%clk 0:02:20]} 46... d4 {[%clk
0:00:59.1]} 47. g7 {[%clk 0:02:16.8]} 47... d3 {[%clk 0:00:58.5]} 48. f6 {[%clk
0:02:15]} 48... Kb5 {[%clk 0:00:54.8]} 49. Rf8 {[%clk 0:02:14.9]} 49... Bd2+
{[%clk 0:00:48.7]} 50. Kf5 {[%clk 0:02:12.9]} 1-0

[Event "*** SCC Grand Prix: Titled Tuesday Blitz"]
[Site "Chess.com"]
[Date "2020.08.11"]
[Round "7"]
[White "Iris77"]
[Black "UKR_Master"]
[Result "1-0"]
[WhiteElo "2078"]
[BlackElo "2292"]
[TimeControl "180+1"]
[EndTime "11:15:53 PDT"]
[Termination "Iris77 won by resignation"]

1. d4 {[%clk 0:03:00.9]} 1... Nf6 {[%clk 0:02:59.5]} 2. Bf4 {[%clk 0:02:59.5]}
2... g6 {[%clk 0:02:51.4]} 3. Nc3 {[%clk 0:02:57.6]} 3... d5 {[%clk 0:02:51.5]}
4. e3 {[%clk 0:02:55.9]} 4... Bg7 {[%clk 0:02:51.2]} 5. h4 {[%clk 0:02:53.7]}
5... O-O {[%clk 0:02:49.6]} 6. h5 {[%clk 0:02:52.1]} 6... Nxh5 {[%clk
0:02:49.6]} 7. Rxh5 {[%clk 0:02:50.5]} 7... gxh5 {[%clk 0:02:50.5]} 8. Qxh5
{[%clk 0:02:47.6]} 8... c5 {[%clk 0:02:50.7]} 9. Nf3 {[%clk 0:02:34.5]} 9...
cxd4 {[%clk 0:02:46.5]} 10. exd4 {[%clk 0:02:32.8]} 10... Nc6 {[%clk 0:02:42.7]}
11. Bd3 {[%clk 0:02:29.9]} 11... f5 {[%clk 0:02:40.7]} 12. O-O-O {[%clk
0:02:24.2]} 12... e6 {[%clk 0:02:35.8]} 13. Rh1 {[%clk 0:02:19.9]} 13... Qf6
{[%clk 0:02:09.3]} 14. Qxh7+ {[%clk 0:02:02.8]} 14... Kf7 {[%clk 0:02:09.3]} 15.
Qh5+ {[%clk 0:01:58.8]} 15... Kg8 {[%clk 0:02:05.7]} 16. Ng5 {[%clk 0:01:39.8]}
16... Rd8 {[%clk 0:01:49.4]} 17. Be5 {[%clk 0:00:50.4]} 17... Nxe5 {[%clk
0:01:38.9]} 18. dxe5 {[%clk 0:00:49.6]} 18... Qe7 {[%clk 0:01:34.1]} 19. Qg6
{[%clk 0:00:43.2]} 19... Kf8 {[%clk 0:01:19.5]} 20. Nh7+ {[%clk 0:00:22.9]}
20... Kg8 {[%clk 0:01:15.1]} 21. Nf6+ {[%clk 0:00:20.3]} 21... Kf8 {[%clk
0:01:14.7]} 22. Rh8+ {[%clk 0:00:18.1]} 1-0

[Event "*** SCC Grand Prix: Titled Tuesday Blitz"]
[Site "Chess.com"]
[Date "2020.08.11"]
[Round "7"]
[White "eljanov"]
[Black "tsvet2005"]
[Result "1-0"]
[WhiteElo "2801"]
[BlackElo "2584"]
[TimeControl "180+1"]
[EndTime "11:16:05 PDT"]
[Termination "eljanov won by resignation"]

1. e4 {[%clk 0:02:58.7]} 1... c5 {[%clk 0:03:00.2]} 2. Nf3 {[%clk 0:02:55.9]}
2... d6 {[%clk 0:03:00.4]} 3. d4 {[%clk 0:02:55.5]} 3... cxd4 {[%clk 0:03:01.3]}
4. Nxd4 {[%clk 0:02:55.4]} 4... Nf6 {[%clk 0:03:01.9]} 5. Nc3 {[%clk 0:02:55.6]}
5... a6 {[%clk 0:03:01.8]} 6. Be2 {[%clk 0:02:55.9]} 6... e5 {[%clk 0:03:02.1]}
7. Nb3 {[%clk 0:02:55.6]} 7... Be7 {[%clk 0:03:02.7]} 8. Be3 {[%clk 0:02:54.7]}
8... Be6 {[%clk 0:03:03.3]} 9. Nd5 {[%clk 0:02:54.7]} 9... Nbd7 {[%clk
0:03:03.1]} 10. Qd3 {[%clk 0:02:54.9]} 10... O-O {[%clk 0:03:02.8]} 11. a4
{[%clk 0:02:53.9]} 11... Bxd5 {[%clk 0:02:57]} 12. exd5 {[%clk 0:02:53.7]} 12...
Ne8 {[%clk 0:02:57.9]} 13. O-O {[%clk 0:02:51.7]} 13... Bg5 {[%clk 0:02:57.5]}
14. a5 {[%clk 0:02:45.9]} 14... Bxe3 {[%clk 0:02:55.8]} 15. Qxe3 {[%clk
0:02:43.6]} 15... Rc8 {[%clk 0:02:54.6]} 16. c4 {[%clk 0:02:41.6]} 16... f5
{[%clk 0:02:52.8]} 17. f3 {[%clk 0:02:40.8]} 17... Nef6 {[%clk 0:02:48.3]} 18.
Nd2 {[%clk 0:02:35.4]} 18... Qe7 {[%clk 0:02:43.1]} 19. b4 {[%clk 0:02:33.1]}
19... Rfe8 {[%clk 0:02:35.7]} 20. Kh1 {[%clk 0:02:28.1]} 20... Qf7 {[%clk
0:02:28]} 21. Rac1 {[%clk 0:01:46.5]} 21... Qh5 {[%clk 0:02:21.2]} 22. c5 {[%clk
0:01:42.1]} 22... f4 {[%clk 0:01:45.6]} 23. Qf2 {[%clk 0:01:32]} 23... dxc5
{[%clk 0:01:34.1]} 24. bxc5 {[%clk 0:01:31.5]} 24... Nxd5 {[%clk 0:01:33.8]} 25.
Bc4 {[%clk 0:01:16.4]} 25... Nf6 {[%clk 0:01:31.2]} 26. Ne4 {[%clk 0:01:12.7]}
26... Kh8 {[%clk 0:01:26.6]} 27. Nd6 {[%clk 0:01:12.8]} 27... Ne3 {[%clk
0:01:19.1]} 28. Bf7 {[%clk 0:01:08.1]} 28... g6 {[%clk 0:01:07.5]} 29. Bxe8
{[%clk 0:01:03.3]} 29... Rxe8 {[%clk 0:01:02.6]} 30. Nxe8 {[%clk 0:01:01.5]}
30... Nxe8 {[%clk 0:01:03.5]} 31. Rfe1 {[%clk 0:01:01.5]} 31... Qh6 {[%clk
0:01:02.4]} 32. Rc3 {[%clk 0:00:55.3]} 32... Nf6 {[%clk 0:01:00.5]} 33. Rcxe3
{[%clk 0:00:54.7]} 1-0

[Event "*** SCC Grand Prix: Titled Tuesday Blitz"]
[Site "Chess.com"]
[Date "2020.08.11"]
[Round "7"]
[White "ManuDavid2910"]
[Black "amatatanav"]
[Result "1-0"]
[WhiteElo "2646"]
[BlackElo "2464"]
[TimeControl "180+1"]
[EndTime "11:16:08 PDT"]
[Termination "ManuDavid2910 won on time"]

1. e4 {[%clk 0:03:00.9]} 1... c5 {[%clk 0:02:59.6]} 2. Nf3 {[%clk 0:03:01.3]}
2... Nc6 {[%clk 0:03:00]} 3. c3 {[%clk 0:03:00.7]} 3... Nf6 {[%clk 0:02:59.4]}
4. e5 {[%clk 0:03:00.9]} 4... Nd5 {[%clk 0:02:59.9]} 5. d4 {[%clk 0:03:01.8]}
5... cxd4 {[%clk 0:03:00.8]} 6. cxd4 {[%clk 0:03:02.7]} 6... d6 {[%clk
0:03:00.3]} 7. exd6 {[%clk 0:03:03.6]} 7... Qxd6 {[%clk 0:02:59.9]} 8. Nc3
{[%clk 0:03:03.9]} 8... Bg4 {[%clk 0:02:43.9]} 9. Bc4 {[%clk 0:03:03.6]} 9... e6
{[%clk 0:02:14.8]} 10. O-O {[%clk 0:03:03.1]} 10... Nb6 {[%clk 0:02:07]} 11. Be2
{[%clk 0:03:02.1]} 11... Rd8 {[%clk 0:01:57.3]} 12. Be3 {[%clk 0:03:01.6]} 12...
Nd5 {[%clk 0:01:49.1]} 13. Bg5 {[%clk 0:02:54.1]} 13... Be7 {[%clk 0:01:46]} 14.
Be3 {[%clk 0:02:45.8]} 14... O-O {[%clk 0:01:33.4]} 15. Kh1 {[%clk 0:02:43.2]}
15... Nxe3 {[%clk 0:00:55.4]} 16. fxe3 {[%clk 0:02:44.1]} 16... Qb4 {[%clk
0:00:41.9]} 17. Qd2 {[%clk 0:02:40.7]} 17... e5 {[%clk 0:00:37]} 18. a3 {[%clk
0:02:38.9]} 18... Qb6 {[%clk 0:00:34.5]} 19. d5 {[%clk 0:02:38.9]} 19... e4
{[%clk 0:00:28.2]} 20. Nxe4 {[%clk 0:02:31.2]} 20... Be6 {[%clk 0:00:10.7]} 21.
Nc3 {[%clk 0:02:30.6]} 21... Na5 {[%clk 0:00:10.6]} 22. e4 {[%clk 0:02:30.3]}
22... Nb3 {[%clk 0:00:10.7]} 23. Qe1 {[%clk 0:02:13.8]} 23... Nxa1 {[%clk
0:00:11.6]} 24. dxe6 {[%clk 0:02:13.8]} 24... Nc2 {[%clk 0:00:08.5]} 25. Qc1
{[%clk 0:02:13.9]} 25... Nd4 {[%clk 0:00:04.6]} 26. exf7+ {[%clk 0:02:11.1]}
26... Kh8 {[%clk 0:00:04.7]} 27. Bc4 {[%clk 0:02:07.3]} 27... Nxf3 {[%clk
0:00:04.9]} 28. Rxf3 {[%clk 0:02:07.9]} 28... Bf6 {[%clk 0:00:04.4]} 29. h3
{[%clk 0:02:06.4]} 29... Bxc3 {[%clk 0:00:03.2]} 30. Rxc3 {[%clk 0:01:59.3]}
30... Rc8 {[%clk 0:00:04.1]} 31. Bd5 {[%clk 0:01:56.6]} 31... Rxc3 {[%clk
0:00:02.3]} 32. Qxc3 {[%clk 0:01:57.5]} 32... Qf2 {[%clk 0:00:02]} 33. Qf3
{[%clk 0:01:54.2]} 33... Qe1+ {[%clk 0:00:01.7]} 34. Kh2 {[%clk 0:01:54.2]}
34... Qd2 {[%clk 0:00:02]} 35. e5 {[%clk 0:01:53.2]} 1-0

[Event "*** SCC Grand Prix: Titled Tuesday Blitz"]
[Site "Chess.com"]
[Date "2020.08.11"]
[Round "7"]
[White "sertalzin"]
[Black "PawnEatingZombie"]
[Result "0-1"]
[WhiteElo "1847"]
[BlackElo "2215"]
[TimeControl "180+1"]
[EndTime "11:16:10 PDT"]
[Termination "PawnEatingZombie won on time"]

1. d4 {[%clk 0:03:00.9]} 1... d5 {[%clk 0:02:59.8]} 2. c4 {[%clk 0:02:59.3]}
2... e6 {[%clk 0:02:59.8]} 3. Nc3 {[%clk 0:02:56.7]} 3... Bb4 {[%clk 0:02:59.8]}
4. e3 {[%clk 0:02:53.5]} 4... Nf6 {[%clk 0:02:59]} 5. a3 {[%clk 0:02:52.9]} 5...
Bxc3+ {[%clk 0:02:57.4]} 6. bxc3 {[%clk 0:02:52.3]} 6... c6 {[%clk 0:02:57.8]}
7. Bd3 {[%clk 0:02:51.5]} 7... O-O {[%clk 0:02:56.2]} 8. Ne2 {[%clk 0:02:51]}
8... b6 {[%clk 0:02:56.6]} 9. cxd5 {[%clk 0:02:50.2]} 9... cxd5 {[%clk
0:02:55.8]} 10. O-O {[%clk 0:02:48.7]} 10... Ba6 {[%clk 0:02:55.6]} 11. Bxa6
{[%clk 0:02:48]} 11... Nxa6 {[%clk 0:02:56.5]} 12. Qd3 {[%clk 0:02:43.3]} 12...
Nb8 {[%clk 0:02:56.2]} 13. f3 {[%clk 0:02:43.3]} 13... Nc6 {[%clk 0:02:55.7]}
14. e4 {[%clk 0:02:35.9]} 14... Na5 {[%clk 0:02:52]} 15. Bg5 {[%clk 0:02:27.1]}
15... h6 {[%clk 0:02:41.5]} 16. Bh4 {[%clk 0:02:25.3]} 16... g5 {[%clk
0:02:25.6]} 17. Bf2 {[%clk 0:02:11.1]} 17... Rc8 {[%clk 0:02:24.8]} 18. e5
{[%clk 0:02:04.5]} 18... Nh7 {[%clk 0:02:24.7]} 19. f4 {[%clk 0:02:02.7]} 19...
f5 {[%clk 0:02:22.1]} 20. exf6 {[%clk 0:01:57.4]} 20... Rxf6 {[%clk 0:02:07.4]}
21. fxg5 {[%clk 0:01:53.9]} 21... hxg5 {[%clk 0:02:06.3]} 22. Ng3 {[%clk
0:01:19.8]} 22... Qe8 {[%clk 0:01:53.6]} 23. Be3 {[%clk 0:01:08.4]} 23... Qg6
{[%clk 0:01:37.3]} 24. Qa6 {[%clk 0:00:20.4]} 24... Rc7 {[%clk 0:01:32.4]} 25.
Rxf6 {[%clk 0:00:15.1]} 25... Nxf6 {[%clk 0:01:29.6]} 26. Qd3 {[%clk 0:00:11.8]}
26... Qxd3 {[%clk 0:01:27.1]} 0-1